lending/lending_fUSD_20251022
["ID","MTS","AMOUNT","RATE_DAILY","PERIOD"]
[392018847,1761102657766,-1502.69,0.00032876,14]
[392018848,1761102657776,-1502.69,0.00032876,14]
[392018849,1761102657785,-505.90849261,0.00032876,14]
[392018850,1761102657797,-1502.69,0.00032876,14]
[392018851,1761102657807,-1502.69,0.00032876,14]
[392018852,1761102657816,-1502.69,0.00032876,14]
[392018853,1761102657826,-1502.69,0.00032876,14]
[392018854,1761102657835,-1502.69,0.00032876,14]
[392018855,1761102657844,-1502.69,0.00032876,14]
[392018856,1761102657854,-1502.69,0.00032876,14]
[392018857,1761102657863,-500.0,0.00032876,14]
[392018858,1761102657873,-1502.69,0.00032876,14]
[392018859,1761102657883,-562.77474514,0.00032876,14]
[392018860,1761102657893,-1502.69,0.00032876,14]
[392018861,1761102657904,-1502.69,0.00032876,14]
[392018862,1761102657914,-1502.69,0.00032876,14]
[392018863,1761102657923,-1502.69,0.00032876,14]
[392018864,1761102657933,-1502.69,0.00032876,14]
[392018865,1761102657942,-500.0,0.00032876,14]
[392018866,1761102657951,-1502.69,0.00032876,14]
[392018867,1761102657960,-500.0,0.00032876,14]
[392018868,1761102657969,-500.0,0.00032876,14]
[392018869,1761102657978,-1502.78515538,0.00032876,14]
[392018870,1761102657987,-500.0,0.00032876,14]
[392018871,1761102657997,-510.36980008,0.00032876,14]
[392018872,1761102658007,-500.0,0.00032876,14]
[392018873,1761102658016,-500.0,0.00032876,14]
[392018874,1761102658026,-181.24695966,0.00032876,14]
[392018875,1761102658035,-627.47823571,0.00032876,14]
[392018876,1761102658045,-1329.86,0.00032876,14]
[392018877,1761102658054,-1329.86,0.00032876,14]
[392018878,1761102658064,-1329.86,0.00032876,14]
[392018879,1761102658073,-1329.86,0.00032876,14]
[392018880,1761102658083,-1329.86,0.00032876,14]
[392018881,1761102658092,-500.0,0.00032876,14]
[392018882,1761102658101,-1329.86,0.00032876,14]
[392018883,1761102658111,-500.0,0.00032876,14]
[392018884,1761102658120,-1329.86,0.00032876,14]
[392018885,1761102658130,-512.95402208,0.00032876,14]
[392018886,1761102658139,-1329.86,0.00032876,14]
[392018887,1761102658148,-1329.86,0.00032876,14]
[392018888,1761102658159,-1329.86,0.00032876,14]
[392018889,1761102658168,-500.0,0.00032876,14]
[392018890,1761102658178,-1329.86,0.00032876,14]
[392018891,1761102658187,-500.0,0.00032876,14]
[392018892,1761102658196,-1329.86,0.00032876,14]
[392018893,1761102658207,-500.0,0.00032876,14]
[392018894,1761102658216,-1329.86,0.00032876,14]
[392018895,1761102658226,-500.0,0.00032876,14]
[392018896,1761102658235,-1329.86,0.00032876,14]
[392018897,1761102658245,-500.0,0.00032876,14]
[392018898,1761102658254,-500.0,0.00032876,14]
[392018899,1761102658263,-1329.86,0.00032876,14]
[392018900,1761102658272,-500.0,0.00032876,14]
[392018901,1761102658281,-500.0,0.00032876,14]
[392018902,1761102658292,-1329.86,0.00032876,14]
[392018903,1761102658302,-500.0,0.00032876,14]
[392018904,1761102658313,-500.0,0.00032876,14]
[392018905,1761102658323,-1329.86,0.00032876,14]
[392018906,1761102658333,-500.0,0.00032876,14]
[392018907,1761102658345,-500.0,0.00032876,14]
[392018908,1761102658357,-1329.86,0.00032876,14]
[392018909,1761102658367,-500.0,0.00032876,14]
[392018910,1761102658376,-500.0,0.00032876,14]
[392018911,1761102658386,-1109.16558239,0.00032876,14]
[392018912,1761102660940,-220.69441761,0.00032876,14]
[392018913,1761102660951,-500.0,0.00032876,14]
[392018914,1761102660961,-500.0,0.00032876,14]
[392018915,1761102660971,-500.0,0.00032876,14]
[392018916,1761102660982,-500.0,0.00032876,14]
[392018917,1761102660992,-1329.86,0.00032876,14]
[392018918,1761102661002,-247.03098239,0.00032876,14]
[392018919,1761102661126,-252.96901761,0.00032876,14]
[392018920,1761102661137,-355.24829385,0.00032876,14]
[392018931,1761102725585,500.0,0.00034303,30]
[392018932,1761102726709,500.0,0.00034303,30]
[392018933,1761102727379,500.0,0.00034303,30]
[392018934,1761102727989,500.0,0.00034303,30]
[392018935,1761102728591,500.0,0.00034303,30]
[392018936,1761102729232,500.0,0.00034303,30]
[392018937,1761102729850,500.0,0.00034303,30]
[392018938,1761102730874,500.0,0.00034303,30]
[392018939,1761102731610,500.0,0.00034303,30]
[392018940,1761102732572,500.0,0.00034303,30]
[392018942,1761102732945,500.0,0.00034303,30]
[392018943,1761102741576,578.20924308,0.00034303,30]
[392018956,1761102825911,276.46,0.00013699,2]
[392019000,1761103214238,1000.0,0.00017,30]
[392019003,1761103239683,5000.0,0.00017,30]
[392019015,1761103294257,-155.94,0.00015448,2]
[392019016,1761103294283,-108.24731215,0.00016636,2]
[392019040,1761103473196,-47.69268785,0.00016636,2]
[392019041,1761103474474,-177.7291089,0.0001723,2]
[392019042,1761103475526,-295.79,0.0001723,2]
[392019043,1761103477474,-295.79,0.0001723,2]
[392019110,1761103508412,20269.30731215,0.00015,2]
[392019111,1761103509340,-295.79,0.00015,2]
[392019112,1761103512633,-295.79,0.00015,2]
[392019134,1761103700399,-295.79,0.0001439,2]
[392019135,1761103703856,-262.414048,0.0001439,2]
[392019136,1761103706422,-222.04338227,0.0001439,2]
[392019169,1761103832194,-90.57228393,0.0001439,2]
[392019171,1761103832203,-215.65528785,0.000149,2]
[392019173,1761103832212,-500.0,0.00014973,2]
[392019175,1761103832222,-500.0,0.00014973,2]
[392019176,1761103832231,-505.54377894,0.00014973,2]
[392019177,1761103832240,-160.48785423,0.00014985,2]
[392019178,1761103832251,-202.47139032,0.0001499,2]
[392019179,1761103832260,-1200.0,0.00014998,2]
[392019180,1761103832269,-300.0,0.00014998,2]
[392019181,1761103832280,-300.0,0.00014998,2]
[392019182,1761103832290,-150.0,0.00014998,2]
[392019183,1761103832299,-500.0,0.00014999,2]
[392019184,1761103832308,-196.51836387,0.00014999,2]
[392019185,1761103832318,-446.77149956,0.00014999,2]
[392019186,1761103832327,-500.0,0.00014999,2]
[392019187,1761103832337,-483.38515251,0.00014999,2]
[392019188,1761103832347,-500.0,0.00014999,2]
[392019189,1761103832357,-500.0,0.00014999,2]
[392019190,1761103832366,-500.0,0.00014999,2]
[392019191,1761103832375,-500.0,0.00014999,2]
[392019192,1761103832385,-500.0,0.00014999,2]
[392019193,1761103832395,-500.0,0.00014999,2]
[392019195,1761103832404,-414.40002557,0.00014999,2]
[392019197,1761103832413,-500.0,0.00014999,2]
[392019199,1761103832423,-95874.95507412,0.00015,2]
[392019208,1761103832508,-733.47429309,0.00015,2]
[392019210,1761103832531,-10639.83820016,0.00015,2]
[392019211,1761103832542,-44475.0748841,0.00015,2]
[392019212,1761103832557,-5432.21145878,0.00015,2]
[392019217,1761103838153,-1286.86674357,0.00015,2]
[392019218,1761103838210,-594.16393369,0.00015,2]
[392019219,1761103838222,-2986.60871399,0.00015,2]
[392019220,1761103838234,-516.05648763,0.00015,2]
[392019403,1761103840116,-813.78645942,0.00015,2]
[392019420,1761103840269,-1460247.033037,0.00015,2]
[392019720,1761103843204,-2746.231,0.00015,2]
[392019722,1761103843215,-689.3421221,0.00015,2]
[392019731,1761103843315,-1652.42942605,0.00015,2]
[392019737,1761103843369,-440.58690012,0.00015,2]
[392019843,1761103846500,-383.32467953,0.00015,2]
[392019844,1761103846556,-2707.0,0.00015,2]
[392019851,1761103866241,-5000.0,0.000149,2]
[392019852,1761103927447,578.20924308,0.00034302,30]
[392019854,1761103929984,500.0,0.00034302,30]
[392019855,1761103930633,500.0,0.00034302,30]
[392019856,1761103931287,500.0,0.00034302,30]
[392019857,1761103931941,500.0,0.00034302,30]
[392019858,1761103932610,500.0,0.00034302,30]
[392019859,1761103935502,500.0,0.00034302,30]
[392019860,1761103936089,500.0,0.00034302,30]
[392019861,1761103936709,500.0,0.00034302,30]
[392019862,1761103937522,500.0,0.00034302,30]
[392019863,1761103937955,500.0,0.00034302,30]
[392019864,1761103938561,500.0,0.00034302,30]
[392019865,1761103939165,500.0,0.00034302,30]
[392019866,1761103940286,500.0,0.00034302,30]
[392019867,1761103941018,500.0,0.00034302,30]
[392019906,1761104230550,203.14015029,0.00034309,30]
[392019907,1761104231235,204.82751921,0.00034309,30]
[392019957,1761104736046,-235.0832616,0.000148,2]
[392019966,1761104839322,-200.0,0.000148,2]
[392019967,1761104842620,-200.0,0.000148,2]
[392019978,1761105032395,-364.9167384,0.000148,2]
[392019979,1761105032405,-2500.0,0.00014824,2]
[392019980,1761105032415,-200.93554606,0.00014869,2]
[392019981,1761105032425,-1200.0,0.00014898,2]
[392019982,1761105032434,-300.0,0.00014898,2]
[392019983,1761105032740,-175.53943308,0.00014899,2]
[392019984,1761105032750,-1025.096,0.00014899,2]
[392019985,1761105032760,-580.0,0.00014899,2]
[392019986,1761105032770,-150.0,0.00014899,2]
[392019987,1761105032784,-334.73183333,0.000149,2]
[392019988,1761105032793,-23071.22706772,0.000149,2]
[392019990,1761105032803,-160.05582771,0.000149,2]
[392019992,1761105032812,-229.62504202,0.000149,2]
[392019994,1761105032821,-222.21434457,0.00014973,2]
[392019996,1761105032831,-501.7305859,0.00014973,2]
[392019998,1761105032841,-275.67950373,0.00014973,2]
[392019999,1761105032851,-500.0,0.00014973,2]
[392020000,1761105032861,-500.0,0.00014973,2]
[392020001,1761105032870,-500.0,0.00014973,2]
[392020002,1761105032879,-500.0,0.00014973,2]
[392020003,1761105032888,-524.91267828,0.00014973,2]
[392020004,1761105032898,-502.11325743,0.00014973,2]
[392020005,1761105032907,-504.88390725,0.00014973,2]
[392020006,1761105032917,-500.0,0.00014973,2]
[392020007,1761105032926,-500.0,0.00014973,2]
[392020008,1761105032936,-192.72086726,0.0001499,2]
[392020009,1761105032946,-151.0,0.00014991,2]
[392020010,1761105032955,-151.0,0.00014991,2]
[392020011,1761105032964,-151.0,0.00014991,2]
[392020012,1761105032974,-151.0,0.00014991,2]
[392020013,1761105032986,-151.0,0.00014991,2]
[392020014,1761105032996,-151.0,0.00014991,2]
[392020015,1761105033006,-151.0,0.00014991,2]
[392020016,1761105033016,-151.0,0.00014991,2]
[392020017,1761105033026,-151.0,0.00014991,2]
[392020018,1761105033036,-151.0,0.00014991,2]
[392020019,1761105033046,-151.0,0.00014991,2]
[392020020,1761105033057,-151.0,0.00014991,2]
[392020021,1761105033067,-151.0,0.00014991,2]
[392020022,1761105033077,-151.0,0.00014991,2]
[392020023,1761105033087,-151.0,0.00014991,2]
[392020024,1761105033096,-151.0,0.00014991,2]
[392020025,1761105033107,-151.0,0.00014991,2]
[392020026,1761105033116,-151.0,0.00014991,2]
[392020027,1761105033125,-262.42003169,0.00014991,2]
[392020028,1761105033137,-500.0,0.00014999,2]
[392020029,1761105033147,-398.30917406,0.00014999,2]
[392020030,1761105033156,-500.0,0.00014999,2]
[392020031,1761105033165,-506.69978009,0.00014999,2]
[392020032,1761105033175,-457.32706501,0.00014999,2]
[392020033,1761105033184,-500.0,0.00014999,2]
[392020034,1761105033194,-500.0,0.00014999,2]
[392020035,1761105033203,-500.0,0.00014999,2]
[392020036,1761105033213,-500.0,0.00014999,2]
[392020037,1761105033223,-500.0,0.00014999,2]
[392020038,1761105033232,-500.0,0.00014999,2]
[392020039,1761105033242,-521.35924763,0.00014999,2]
[392020040,1761105033252,-500.0,0.00014999,2]
[392020041,1761105033262,-381.50212217,0.00014999,2]
[392020042,1761105033271,-840.0,0.00014999,2]
[392020043,1761105033281,-508.07717357,0.00014999,2]
[392020044,1761105033291,-500.0,0.00014999,2]
[392020045,1761105033300,-500.0,0.00014999,2]
[392020046,1761105033310,-500.0,0.00014999,2]
[392020047,1761105033319,-500.0,0.00014999,2]
[392020048,1761105033329,-386.0,0.00014999,2]
[392020049,1761105033339,-1125.267711,0.00014999,5]
[392020050,1761105033348,-500.0,0.00014999,2]
[392020051,1761105033358,-303.3879472,0.00014999,2]
[392020052,1761105033377,-500.0,0.00014999,2]
[392020053,1761105033387,-500.0,0.00014999,2]
[392020054,1761105033397,-500.0,0.00014999,2]
[392020055,1761105033407,-500.0,0.00014999,2]
[392020056,1761105033417,-500.0,0.00014999,2]
[392020057,1761105033427,-43979.2949481,0.00015,2]
[392020058,1761105033835,-17042.82101281,0.00015,2]
[392020059,1761105033858,-936415.76085109,0.00015,2]
[392020060,1761105033868,-529.94810543,0.00015,2]
[392020061,1761105033878,-175260.912061,0.00015,2]
[392020062,1761105033888,-5274.1087049,0.00015,2]
[392020063,1761105033898,-523.16,0.00015,2]
[392020064,1761105033907,-476.13251256,0.00015,2]
[392020065,1761105033916,-500.0,0.0001507,2]
[392020066,1761105033926,-840.0,0.00015273,2]
[392020067,1761105033936,-217.92,0.0001528,2]
[392020068,1761105033945,-1220.86,0.00015317,2]
[392020069,1761105033955,-500.0,0.00015521,2]
[392020070,1761105033964,-312.77003995,0.00015521,2]
[392020071,1761105033974,-1000.0,0.00015521,2]
[392020072,1761105033983,-1000.0,0.00015521,2]
[392020073,1761105033993,-840.0,0.00015547,2]
[392020074,1761105034003,-24467.53795166,0.00015692,2]
[392020075,1761105034013,-840.0,0.00015821,2]
[392020076,1761105034023,-196.82263347,0.00016068,2]
[392020077,1761105034033,-165.28,0.00016075,2]
[392020078,1761105034042,-840.0,0.00016095,2]
[392020079,1761105034051,-50352.80864654,0.000162,5]
[392020080,1761105034065,-435.42027378,0.0001628,2]
[392020081,1761105034074,-2500.0,0.0001628,2]
[392020082,1761105034083,-163.99133685,0.0001628,2]
[392020083,1761105034092,-250.0,0.0001628,2]
[392020084,1761105034103,-840.0,0.00016369,2]
[392020085,1761105034112,-1200.0,0.00016388,2]
[392020086,1761105034122,-840.0,0.00016643,2]
[392020087,1761105034132,-727.1187371,0.00016881,2]
[392020088,1761105034141,-23071.22706766,0.00016886,2]
[392020089,1761105034151,-666.0,0.0001689,3]
[392020090,1761105034161,-1359.87146827,0.00016905,2]
[392020091,1761105034171,-1176.8127199,0.00016906,2]
[392020092,1761105034184,-39105.9953759,0.00016915,2]
[392020093,1761105034194,-840.06,0.00016917,2]
[392020094,1761105034203,-166.66,0.0001701,2]
[392020095,1761105034213,-262.5824106,0.00017331,2]
[392020096,1761105034222,-8725.7270109,0.00017342,2]
[392020097,1761105034232,-166.66,0.00017369,2]
[392020098,1761105034241,-229.62504196,0.00017454,2]
[392020099,1761105034251,-2370.24,0.00017481,2]
[392020100,1761105034260,-160.05582769,0.00017622,2]
[392020101,1761105034270,-166.66,0.00017727,2]
[392020102,1761105034279,-166.32,0.00017791,2]
[392020103,1761105034289,-155.94,0.00017824,2]
[392020104,1761105034299,-166.66,0.00018085,2]
[392020105,1761105034308,-334.73183332,0.00018123,2]
[392020106,1761105034318,-166.66,0.00018443,2]
[392020107,1761105034327,-165.28,0.00018754,2]
[392020108,1761105034337,-19788.00103445,0.0001876,2]
[392020109,1761105034347,-152.03,0.000188,2]
[392020110,1761105034356,-166.66,0.00018801,2]
[392020111,1761105034366,-23071.22706766,0.00018872,2]
[392020112,1761105034375,-167.03965033,0.00019,2]
[392020113,1761105034385,-155.94,0.00019013,2]
[392020114,1761105034394,-229.62504196,0.00020007,2]
[392020115,1761105034404,-276.46,0.00020187,2]
[392020116,1761105034413,-155.94,0.00020201,2]
[392020117,1761105034423,-160.05582769,0.00020343,2]
[392020118,1761105034433,-166.32,0.00020727,2]
[392020119,1761105034442,-23071.22706766,0.00020859,2]
[392020120,1761105034452,-1000.0,0.00021137,4]
[392020121,1761105034461,-334.73183332,0.00021345,2]
[392020122,1761105034470,-155.94,0.00021389,2]
[392020123,1761105034480,-165.28,0.00021433,2]
[392020124,1761105034489,-150.0,0.00021436,2]
[392020125,1761105034499,-500.0,0.00021917,2]
[392020126,1761105034509,-575.70218171,0.00021917,2]
[392020127,1761105034518,-20632.94174501,0.00022,4]
[392020128,1761105034527,-229.62504196,0.00022561,2]
[392020129,1761105034536,-155.94,0.00022577,2]
[392020130,1761105034546,-4064.12,0.00022608,2]
[392020131,1761105034555,-23071.22706766,0.00022845,2]
[392020132,1761105034568,-160.05582769,0.00023065,2]
[392020133,1761105034577,-155.94,0.00023766,2]
[392020134,1761105034587,-220.68,0.00023836,2]
[392020135,1761105034596,-165.28,0.00024113,2]
[392020136,1761105034605,-334.73183332,0.00024568,2]
[392020137,1761105034615,-501.13264446,0.00024773,2]
[392020138,1761105034625,-500.0,0.00024799,2]
[392020139,1761105034634,-274.34703763,0.000248,2]
[392020140,1761105034643,-68130.4603571,0.000248,2]
[392020141,1761105034653,-23071.22706766,0.00024831,2]
[392020142,1761105034662,-297.87439,0.000249,7]
[392020143,1761105034671,-151.0,0.000249,7]
[392020144,1761105034681,-151.0,0.000249,7]
[392020145,1761105034691,-288.640548,0.000249,7]
[392020146,1761105034701,-151.0,0.000249,7]
[392020147,1761105034710,-155.94,0.00024954,2]
[392020148,1761105034720,-229.62504196,0.00025115,2]
[392020149,1761105034729,-160.05582769,0.00025786,2]
[392020150,1761105034739,-155.94,0.00026142,2]
[392020151,1761105034749,-276.46,0.00026676,2]
[392020152,1761105034759,-1235.0,0.00026792,2]
[392020153,1761105034769,-23071.22706766,0.00026817,2]
[392020154,1761105034779,-155.94,0.0002733,2]
[392020155,1761105034789,-347.78,0.00027397,30]
[392020156,1761105034798,-150.40131831,0.00027397,5]
[392020157,1761105034808,-719.7,0.000274,7]
[392020158,1761105034818,-798.91,0.000274,7]
[392020159,1761105034828,-179.0,0.00027402,2]
[392020160,1761105034838,-180.26283889,0.0002754,2]
[392020161,1761105034847,-3430.327,0.00027573,2]
[392020162,1761105034857,-573.15,0.00027573,2]
[392020163,1761105034867,-711.761,0.00027573,2]
[392020164,1761105034876,-2063.354,0.00027573,2]
[392020165,1761105034886,-608.339,0.00027573,2]
[392020166,1761105034896,-1596.047,0.00027573,2]
[392020167,1761105034906,-621.925,0.00027573,2]
[392020168,1761105034916,-906.248,0.00027573,2]
[392020169,1761105034926,-229.62504196,0.00027669,2]
[392020170,1761105034939,-199.0,0.00027671,7]
[392020171,1761105034950,-334.73183332,0.0002779,2]
[392020172,1761105034959,-199.0,0.00027945,8]
[392020173,1761105034970,-7863.76785281,0.00028,2]
[392020174,1761105034980,-15111.67375707,0.00028,2]
[392020175,1761105034994,-8401.26506448,0.00028,2]
[392020176,1761105035004,-20953.27403319,0.00028,2]
[392020177,1761105035014,-181.14,0.00028,2]
[392020178,1761105035024,-1400.53904283,0.00028,30]
[392020179,1761105035034,-1157.6578595,0.00028,2]
[392020187,1761105038209,-250.0,0.000149,2]
[392020188,1761105038271,-2521.40975778,0.000149,2]
[392020381,1761105040417,-1477.7839425,0.000149,2]
[392020386,1761105040458,-905.62633556,0.000149,2]
[392020388,1761105040469,-2069.9006304,0.000149,2]
[392021030,1761105047033,-260.63,0.000149,2]
[392021096,1761105049039,-383.28647771,0.000149,2]
[392021106,1761105055092,-256.55285745,0.000149,2]
[392021107,1761105057172,-184.37737769,0.000149,2]
[392021108,1761105059256,-195.0,0.000149,2]
[392021114,1761105132640,578.20924308,0.00034306,30]
[392021284,1761105425212,172.95593521,0.00034306,30]
[392021340,1761105746908,300.65,0.00013699,2]
[392021371,1761105807286,1848.75585556,0.00034284,120]
[392021390,1761105836360,695.47126349,0.00034284,120]
[392021424,1761105919018,-165.5857325,0.00014899,2]
[392021425,1761105919042,-121.83516289,0.00014924,2]
[392021428,1761105920830,-231.32277648,0.00014924,2]
[392021453,1761105967948,1058.308671,7.945e-05,2]
[392021525,1761106231422,-2146.84206063,0.00014924,2]
[392021526,1761106231432,-195.0,0.00014924,2]
[392021527,1761106231441,-195.0,0.0001493,2]
[392021528,1761106231451,-231.32277648,0.00014937,2]
[392021529,1761106231460,-300.0,0.00014949,2]
[392021530,1761106231469,-500.0,0.00014999,2]
[392021531,1761106231478,-543.03653127,0.00014999,2]
[392021532,1761106231489,-85.80395232,0.00014999,2]
[392021533,1761106231499,-1200.0,0.00015084,2]
[392021534,1761106231508,-300.0,0.00015084,2]
[392021535,1761106231517,-2520.82123178,0.00015085,2]
[392021536,1761106231527,-195.0,0.00015085,2]
[392021537,1761106231536,-83.65956259,0.00015579,2]
[392021538,1761106231576,-215.63297697,0.00015579,2]
[392021539,1761106231585,-300.0,0.00016389,2]
[392021540,1761106231595,-2500.0,0.00016389,2]
[392021541,1761106231604,-195.0,0.00016389,2]
[392021543,1761106231614,-287.42089539,0.00016416,2]
[392021544,1761106231624,-250.0,0.00016416,2]
[392021545,1761106231633,-195.0,0.00016416,2]
[392021546,1761106231642,-420.0,0.00016507,2]
[392021547,1761106231651,-180.0,0.00018065,2]
[392021548,1761106231661,-399.45064852,0.00019318,2]
[392021549,1761106231671,-1007.0,0.000197,2]
[392021550,1761106231680,-300.65,0.00020187,2]
[392021551,1761106231690,-156.66,0.0002168,2]
[392021552,1761106231700,-293.24,0.0002176,2]
[392021553,1761106231709,-328.24,0.00022207,2]
[392021554,1761106231719,-4672.64,0.00022712,2]
[392021555,1761106231728,-1000.0,0.00023079,2]
[392021556,1761106231738,-1007.30270373,0.000234,2]
[392021557,1761106231747,-637.13333135,0.00024328,3]
[392021558,1761106231757,-5000.0,0.00024428,2]
[392021559,1761106231766,-292.18,0.0002445,2]
[392021560,1761106231776,-150.0,0.00024647,2]
[392021561,1761106231785,-29651.44,0.00024648,2]
[392021562,1761106231795,-250.0,0.00025077,2]
[392021563,1761106231804,-1332.4,0.00025241,2]
[392021564,1761106231814,-292.18,0.00025367,2]
[392021565,1761106231823,-500.0,0.0002551,2]
[392021566,1761106231832,-500.0,0.0002551,2]
[392021567,1761106231842,-500.0,0.0002551,2]
[392021568,1761106231851,-500.0,0.0002551,2]
[392021569,1761106231861,-500.0,0.0002551,2]
[392021570,1761106231871,-500.0,0.0002551,2]
[392021571,1761106231881,-500.0,0.0002551,2]
[392021572,1761106231890,-500.0,0.0002551,2]
[392021573,1761106231900,-500.0,0.0002551,2]
[392021574,1761106231909,-500.0,0.0002551,2]
[392021575,1761106231919,-500.0,0.0002551,2]
[392021576,1761106231928,-500.0,0.0002551,2]
[392021577,1761106231937,-500.0,0.0002551,2]
[392021578,1761106231946,-500.0,0.0002551,2]
[392021579,1761106231957,-500.0,0.0002551,2]
[392021580,1761106231966,-500.0,0.0002551,2]
[392021581,1761106231975,-500.0,0.0002551,2]
[392021582,1761106231985,-500.0,0.0002551,2]
[392021583,1761106232000,-500.0,0.0002551,2]
[392021584,1761106232010,-500.0,0.0002551,2]
[392021585,1761106232020,-500.0,0.0002551,2]
[392021586,1761106232031,-500.0,0.0002551,2]
[392021587,1761106232043,-500.0,0.0002551,2]
[392021588,1761106232053,-500.0,0.0002551,2]
[392021589,1761106232062,-500.0,0.0002551,2]
[392021590,1761106232071,-500.0,0.0002551,2]
[392021591,1761106232081,-500.0,0.0002551,2]
[392021592,1761106232090,-500.0,0.0002551,2]
[392021593,1761106232100,-500.0,0.0002551,2]
[392021594,1761106232109,-500.0,0.0002551,2]
[392021595,1761106232119,-605.95485511,0.0002551,2]
[392021596,1761106232128,-260.29,0.00025512,2]
[392021597,1761106232138,-23700.93,0.00025512,2]
[392021598,1761106232147,-150.0,0.00025595,2]
[392021599,1761106232157,-7786.91739807,0.0002563,2]
[392021600,1761106232167,-1249.22000049,0.00025729,10]
[392021601,1761106232176,-190.80325287,0.00025729,2]
[392021602,1761106232186,-89397.9795911,0.0002573,2]
[392021603,1761106232196,-1891.204029,0.0002573,2]
[392021604,1761106232205,-260.29,0.00025785,2]
[392021605,1761106232215,-365.8786399,0.00025873,2]
[392021606,1761106232224,-1000.0,0.00025964,2]
[392021607,1761106232234,-260.29,0.00026059,2]
[392021608,1761106232244,-856.44175484,0.00026189,2]
[392021609,1761106232254,-292.18,0.00026283,2]
[392021610,1761106232264,-260.29,0.00026333,2]
[392021611,1761106232273,-1195.15,0.00026401,2]
[392021612,1761106232283,-7786.91739805,0.00026424,2]
[392021613,1761106232293,-260.32,0.00026607,2]
[392021614,1761106232303,-300.65,0.00026676,2]
[392021615,1761106232313,-292.18,0.000272,2]
[392021616,1761106232322,-2591.0,0.00027367,2]
[392021617,1761106232331,-6488.473,0.00027367,2]
[392021618,1761106232341,-212.686,0.00027367,2]
[392021619,1761106232350,-743.15630909,0.00027578,2]
[392021620,1761106232360,-1224.37766,0.0002772,2]
[392021621,1761106232369,-389.76062678,0.00027806,2]
[392021622,1761106232378,-313.7017338,0.00027806,2]
[392021623,1761106232388,-450.0,0.00027825,7]
[392021624,1761106232397,-743.1563091,0.00027846,2]
[392021625,1761106232406,-536.56157591,0.00027902,2]
[392021626,1761106232416,-500.0,0.00027999,2]
[392021627,1761106232425,-246.09476825,0.00027999,2]
[392021628,1761106232435,-216.57051782,0.00027999,2]
[392021629,1761106232444,-429.79153521,0.00027999,2]
[392021630,1761106232453,-48910.38714504,0.00028,2]
[392021631,1761106232463,-160.0,0.00028,2]
[392021632,1761106232472,-151.78822857,0.00028,2]
[392021633,1761106232482,-203.53784738,0.00028,2]
[392021634,1761106232492,-152.0,0.00028042,3]
[392021635,1761106232501,-925.768,0.00028113,18]
[392021636,1761106232511,-292.18,0.00028117,2]
[392021637,1761106232520,-250.0,0.00028161,7]
[392021638,1761106232530,-197.04338459,0.00028253,4]
[392021639,1761106232540,-500.0,0.00028267,5]
[392021640,1761106232550,-500.0,0.00028267,5]
[392021641,1761106232559,-743.22,0.00028341,2]
[392021642,1761106232569,-173.98646001,0.00028407,2]
[392021643,1761106232578,-4066.52125335,0.00028419,2]
[392021652,1761106237570,-266.938,0.00027218,2]
[392021816,1761106239488,-512.27802841,0.00027218,2]
[392021828,1761106239590,-1170.3795753,0.00027218,2]